fUSD/lending_fUSD_20240116
["ID","MTS","AMOUNT","RATE_DAILY","PERIOD"]
[311731797,1705367460637,-3107.19,0.00022732,2]
[311731798,1705367460651,-522.89,0.00022732,2]
[311731799,1705367460663,-500.0,0.00022732,2]
[311731800,1705367460673,-795.43,0.00022732,2]
[311731801,1705367460684,-2566.58,0.00022732,2]
[311731802,1705367460695,-684.15,0.00022732,2]
[311731803,1705367460703,-500.0,0.00022732,2]
[311731804,1705367460711,-5330.48,0.00022732,2]
[311731805,1705367460720,-1206.1,0.00022732,2]
[311731806,1705367460730,-500.0,0.00022732,2]
[311731807,1705367460741,-1084.77,0.00022732,2]
[311731808,1705367460750,-863.11,0.00022732,2]
[311731809,1705367460760,-533.31,0.00022732,2]
[311731810,1705367460770,-747.79,0.00022732,2]
[311731811,1705367460782,-500.0,0.00022732,2]
[311731812,1705367460793,-326.06642669,0.00022732,2]
[311731813,1705367460803,-1430.46,0.00022732,2]
[311731814,1705367460812,-561.35,0.00022732,2]
[311731815,1705367460826,-510.52918709,0.00022732,2]
[311731816,1705367460854,-500.0,0.00022732,2]
[311731817,1705367461038,-883.99,0.00022732,2]
[311731818,1705367461048,-577.97,0.00022732,2]
[311731819,1705367461058,-500.0,0.00022732,2]
[311731820,1705367461068,-5389.35,0.00022732,2]
[311731821,1705367461078,-683.86,0.00022732,2]
[311731822,1705367461089,-500.0,0.00022732,2]
[311731823,1705367461099,-500.0,0.00022732,2]
[311731824,1705367461109,-8866.96,0.00022732,2]
[311731825,1705367461119,-2858.9,0.00022732,2]
[311731826,1705367461130,-500.0,0.00022732,2]
[311731827,1705367461148,-590.82,0.00022732,2]
[311731828,1705367461158,-500.0,0.00022732,2]
[311731829,1705367461168,-598.64,0.00022732,2]
[311731830,1705367461180,-2120.12,0.00022732,2]
[311731831,1705367461190,-831.24,0.00022732,2]
[311731832,1705367461201,-1637.7,0.00022732,2]
[311731833,1705367461211,-500.0,0.00022732,2]
[311731834,1705367461222,-517.20667323,0.00022732,2]
[311731835,1705367461233,-500.0,0.00022732,2]
[311731836,1705367461243,-3729.15,0.00022732,2]
[311731837,1705367461253,-500.0,0.00022732,2]
[311731838,1705367461263,-554.25,0.00022732,2]
[311731839,1705367461273,-150.0,0.00022732,2]
[311731840,1705367461284,-1392.96,0.00022732,2]
[311731841,1705367461293,-500.0,0.00022732,2]
[311731842,1705367461303,-500.0,0.00022732,2]
[311731843,1705367461313,-716.25,0.00022732,2]
[311731844,1705367461323,-500.0,0.00022732,2]
[311731845,1705367461333,-731.29,0.00022732,2]
[311731846,1705367461343,-500.0,0.00022732,2]
[311731847,1705367461354,-790.2,0.00022732,2]
[311731848,1705367461364,-6373.58,0.00022732,2]
[311731849,1705367461375,-716.5,0.00022732,2]
[311731850,1705367461385,-736.55,0.00022732,2]
[311731851,1705367461395,-500.0,0.00022732,2]
[311731852,1705367461408,-1173.23,0.00022732,2]
[311731853,1705367461418,-859.75,0.00022732,2]
[311731854,1705367461429,-1038.83,0.00022732,2]
[311731855,1705367461439,-500.0,0.00022732,2]
[311731856,1705367461450,-500.0,0.00022732,2]
[311731857,1705367461460,-559.29,0.00022732,2]
[311731858,1705367461471,-719.41,0.00022732,2]
[311731859,1705367461480,-572.62,0.00022732,2]
[311731860,1705367461490,-500.0,0.00022732,2]
[311731861,1705367461500,-500.0,0.00022732,2]
[311731862,1705367461509,-500.0,0.00022732,2]
[311731863,1705367461519,-500.0,0.00022732,2]
[311731864,1705367461529,-680.75,0.00022732,2]
[311731865,1705367461539,-1656.23,0.00022732,2]
[311731866,1705367461548,-579.24,0.00022732,2]
[311731867,1705367461558,-1178.32,0.00022732,2]
[311731868,1705367461568,-500.0,0.00022732,2]
[311731869,1705367461577,-500.0,0.00022732,2]
[311731870,1705367461588,-1556.39,0.00022732,2]
[311731871,1705367461597,-500.0,0.00022732,2]
[311731872,1705367461607,-500.0,0.00022732,2]
[311731873,1705367461617,-500.0,0.00022732,2]
[311731874,1705367461627,-500.0,0.00022732,2]
[311731875,1705367461637,-733.76,0.00022732,2]
[311731876,1705367461650,-500.0,0.00022732,2]
[311731877,1705367461659,-772.5,0.00022732,2]
[311731878,1705367461669,-681.75,0.00022732,2]
[311731879,1705367461679,-1514.15,0.00022732,2]
[311731880,1705367461690,-500.0,0.00022732,2]
[311731881,1705367461699,-500.0,0.00022732,2]
[311731882,1705367461709,-500.0,0.00022732,2]
[311731883,1705367461718,-1490.21,0.00022732,2]
[311731884,1705367461728,-874.11,0.00022732,2]
[311731885,1705367461737,-821.2,0.00022732,2]
[311731886,1705367461747,-1700.4,0.00022732,2]
[311731887,1705367461757,-500.0,0.00022732,2]
[311731888,1705367461767,-500.0,0.00022732,2]
[311731889,1705367461777,-2822.12,0.00022732,2]
[311731890,1705367461786,-500.0,0.00022732,2]
[311731891,1705367461796,-500.0,0.00022732,2]
[311731892,1705367461806,-500.0,0.00022732,2]
[311731893,1705367461816,-535.24,0.00022732,2]
[311731894,1705367461825,-769.1,0.00022732,2]
[311731895,1705367461836,-611.38,0.00022732,2]
[311731896,1705367461845,-4554.81,0.00022732,2]
[311731897,1705367461855,-1768.16,0.00022732,2]
[311731898,1705367461865,-500.0,0.00022732,2]
[311731899,1705367461875,-637.62,0.00022732,2]
[311731900,1705367461885,-516.79,0.00022732,2]
[311731901,1705367461895,-500.0,0.00022732,2]
[311731902,1705367461907,-500.0,0.00022732,2]
[311731903,1705367461917,-151.0,0.00022732,7]
[311731904,1705367461927,-193.339131,0.00022732,7]
[311731905,1705367461937,-169.914393,0.00022732,7]
[311731906,1705367461946,-169.914393,0.00022732,7]
[311731907,1705367461956,-151.0,0.00022733,7]
[311731908,1705367461966,-154.844232,0.00022733,7]
[311731909,1705367461976,-154.844232,0.00022733,7]
[311731910,1705367461985,-151.0,0.00022733,7]
[311731911,1705367461995,-1151.76,0.00022733,2]
[311731912,1705367462005,-4311.77,0.00022733,2]
[311731913,1705367462015,-2013.36,0.00022733,2]
[311731914,1705367462025,-500.0,0.00022733,2]
[311731915,1705367462036,-2900.53,0.00022733,2]
[311731916,1705367462046,-774.98,0.00022733,2]
[311731917,1705367462056,-1349.05,0.00022733,2]
[311731918,1705367462066,-586.12,0.00022733,2]
[311731919,1705367462076,-623.71,0.00022733,2]
[311731920,1705367462087,-500.0,0.00022733,2]
[311731921,1705367462099,-1294.89,0.00022733,2]
[311731922,1705367462109,-3067.69,0.00022733,2]
[311731923,1705367462121,-3247.48,0.00022733,2]
[311731924,1705367462132,-6519.47,0.00022733,2]
[311731925,1705367462142,-8337.88,0.00022733,2]
[311731926,1705367462153,-1079.19,0.00022733,2]
[311731927,1705367462166,-709.76,0.00022733,2]
[311731928,1705367462175,-500.0,0.00022733,2]
[311731929,1705367462184,-4162.99,0.00022733,2]
[311731930,1705367462193,-6872.96,0.00022733,2]
[311731931,1705367462202,-3767.92,0.00022733,2]
[311731932,1705367462211,-2407.47,0.00022733,2]
[311731933,1705367462220,-1165.11,0.00022733,2]
[311731934,1705367462229,-2195.48,0.00022733,2]
[311731935,1705367462239,-3092.74,0.00022733,2]
[311731936,1705367462249,-1733.11,0.00022733,2]
[311731937,1705367462258,-2933.67,0.00022733,2]
[311731938,1705367462268,-1668.34,0.00022733,2]
[311731939,1705367462277,-3729.15,0.00022733,2]
[311731940,1705367462287,-151.0,0.00022734,7]
[311731941,1705367462296,-151.0,0.00022734,7]
[311731942,1705367462306,-151.0,0.00022734,7]
[311731943,1705367462316,-151.0,0.00022734,7]
[311731944,1705367462325,-184.109084,0.00022734,7]
[311731945,1705367462334,-259.3728,0.00022734,2]
[311731946,1705367462344,-259.3728,0.00022734,2]
[311731947,1705367462354,-2304.07734728,0.00022734,2]
[311731948,1705367462363,-813.09,0.00022734,2]
[311731949,1705367462372,-6157.37,0.00022734,2]
[311731950,1705367462381,-2182.25,0.00022734,2]
[311731951,1705367462390,-539.62,0.00022734,5]
[311731952,1705367462400,-3735.2,0.00022734,2]
[311731953,1705367462410,-4056.87,0.00022734,2]
[311731954,1705367462420,-2337.61,0.00022734,2]
[311731955,1705367462429,-1554.07,0.00022734,2]
[311731956,1705367462439,-1720.31,0.00022734,2]
[311731957,1705367462449,-802.36,0.00022734,2]
[311731958,1705367462460,-2019.62,0.00022734,2]
[311731959,1705367462471,-1125.39,0.00022734,2]
[311731960,1705367462481,-783.92,0.00022734,2]
[311731961,1705367462492,-3069.83,0.00022734,2]
[311731962,1705367462502,-1679.5,0.00022734,2]
[311731963,1705367462511,-820.99,0.00022734,2]
[311731964,1705367462521,-2708.73,0.00022734,2]
[311731965,1705367462530,-993.34,0.00022734,2]
[311731966,1705367462540,-500.0,0.00022735,2]
[311731967,1705367462550,-575.4,0.00022735,2]
[311731968,1705367462561,-680.06,0.00022735,2]
[311731969,1705367462571,-794.33,0.00022735,2]
[311731970,1705367462581,-876.12,0.00022735,2]
[311731971,1705367462590,-500.0,0.00022735,2]
[311731972,1705367462600,-606.35,0.00022735,2]
[311731973,1705367462610,-500.0,0.00022735,2]
[311731974,1705367462620,-756.9,0.00022735,2]
[311731975,1705367462629,-658.84,0.00022735,2]
[311731976,1705367462639,-302.16100745,0.00022735,2]
[311731977,1705367462649,-500.0,0.00022735,2]
[311731978,1705367462659,-632.43,0.00022735,2]
[311731979,1705367462669,-500.0,0.00022735,2]
[311731980,1705367462679,-500.0,0.00022735,2]
[311731981,1705367462689,-500.0,0.00022735,2]
[311731982,1705367462698,-500.0,0.00022735,2]
[311731983,1705367462708,-500.0,0.00022735,2]
[311731984,1705367462718,-500.0,0.00022735,2]
[311731985,1705367462729,-783.41,0.00022735,2]
[311731986,1705367462739,-585.22,0.00022735,2]
[311731987,1705367462749,-500.0,0.00022735,2]
[311731988,1705367462758,-500.0,0.00022735,2]
[311731989,1705367462768,-549.05,0.00022735,2]
[311731990,1705367462778,-500.0,0.00022735,2]
[311731991,1705367462788,-658.47,0.00022735,2]
[311731992,1705367462797,-504.4,0.00022735,2]
[311731993,1705367462807,-500.0,0.00022735,2]
[311731994,1705367462817,-500.0,0.00022735,2]
[311731995,1705367462827,-500.0,0.00022735,2]
[311731996,1705367462837,-504.9,0.00022735,2]
[311731997,1705367462847,-566.92,0.00022735,2]
[311731998,1705367462857,-1109.38,0.00022735,2]
[311731999,1705367462868,-762.69,0.00022735,2]
[311732000,1705367462878,-500.0,0.00022735,2]
[311732001,1705367462888,-500.0,0.00022735,2]
[311732002,1705367462899,-500.0,0.00022735,2]
[311732003,1705367462909,-500.0,0.00022735,2]
[311732004,1705367462918,-571.09,0.00022735,2]
[311732005,1705367462928,-576.81,0.00022735,2]
[311732006,1705367462938,-500.0,0.00022735,2]
[311732007,1705367462948,-500.0,0.00022735,2]
[311732008,1705367462958,-500.0,0.00022735,2]
[311732009,1705367462968,-507.36,0.00022735,2]
[311732010,1705367462978,-500.0,0.00022735,2]
[311732011,1705367462988,-500.0,0.00022735,2]
[311732012,1705367462998,-500.0,0.00022735,2]
[311732013,1705367463008,-500.0,0.00022735,2]
[311732014,1705367463019,-507.89,0.00022735,2]
[311732015,1705367463029,-728.33,0.00022735,2]
[311732016,1705367463038,-1034.17,0.00022735,2]
[311732017,1705367463048,-500.0,0.00022735,2]
[311732018,1705367463058,-500.0,0.00022735,2]
[311732019,1705367463068,-590.94,0.00022735,2]
[311732020,1705367463077,-500.0,0.00022735,2]
[311732021,1705367463087,-500.0,0.00022735,2]
[311732022,1705367463097,-500.0,0.00022735,2]
[311732023,1705367463107,-643.09,0.00022735,2]
[311732024,1705367463117,-1028.21,0.00022735,2]
[311732025,1705367463129,-822.0,0.00022735,2]
[311732026,1705367463145,-500.0,0.00022735,2]
[311732027,1705367463156,-359.43512938,0.00022735,2]
[311732028,1705367463167,-500.0,0.00022735,2]
[311732029,1705367463178,-591.3,0.00022735,2]
[311732030,1705367463188,-1014.91,0.00022735,2]
[311732031,1705367463198,-415.8634835,0.00022735,2]
[311732032,1705367463531,-500.0,0.00022735,2]
[311732033,1705367463541,-500.0,0.00022735,2]
[311732034,1705367463550,-500.0,0.00022735,2]
[311732035,1705367463560,-500.0,0.00022735,2]
[311732036,1705367463569,-500.0,0.00022735,2]
[311732037,1705367463578,-500.0,0.00022735,2]
[311732038,1705367463587,-500.0,0.00022735,2]
[311732039,1705367463596,-500.0,0.00022735,2]
[311732040,1705367463606,-500.0,0.00022735,2]
[311732041,1705367463615,-1032.39,0.00022735,2]
[311732042,1705367463624,-500.0,0.00022735,2]
[311732043,1705367463633,-500.0,0.00022735,2]
[311732044,1705367463643,-906.43,0.00022735,2]
[311732045,1705367463653,-500.0,0.00022735,2]
[311732046,1705367463662,-561.02,0.00022735,2]
[311732047,1705367463672,-731.22,0.00022735,2]
[311732048,1705367463681,-500.0,0.00022735,2]
[311732049,1705367463690,-605.07,0.00022735,2]
[311732050,1705367463701,-805.91,0.00022735,2]
[311732051,1705367463711,-500.0,0.00022735,2]
[311732052,1705367463721,-500.0,0.00022735,2]
[311732053,1705367463732,-601.56,0.00022735,2]
[311732054,1705367463741,-1882.15,0.00022735,2]
[311732055,1705367463751,-500.0,0.00022735,2]
[311732056,1705367463761,-700.48,0.00022735,2]
[311732057,1705367463771,-500.0,0.00022735,2]
[311732058,1705367463780,-1272.91,0.00022735,2]
[311732059,1705367463790,-519.35,0.00022735,2]
[311732060,1705367463799,-500.0,0.00022735,2]
[311732061,1705367463808,-500.0,0.00022735,2]
[311732062,1705367463818,-511.82,0.00022735,2]
[311732063,1705367463827,-661.6,0.00022735,2]
[311732064,1705367463837,-500.0,0.00022735,2]
[311732065,1705367463848,-500.0,0.00022735,2]
[311732066,1705367463857,-525.82,0.00022735,2]
[311732067,1705367463867,-574.85,0.00022735,2]
[311732068,1705367463877,-500.0,0.00022735,2]
[311732069,1705367463887,-500.0,0.00022735,2]
[311732070,1705367463896,-505.6,0.00022735,2]
[311732071,1705367463907,-500.0,0.00022735,2]
[311732072,1705367463917,-1093.13,0.00022735,2]
[311732073,1705367463926,-500.0,0.00022735,2]
[311732074,1705367463936,-500.0,0.00022735,2]
[311732075,1705367463945,-689.99,0.00022735,2]
[311732076,1705367463955,-570.26,0.00022735,2]
[311732077,1705367463965,-500.0,0.00022735,2]
[311732078,1705367463975,-1044.04,0.00022735,2]
[311732079,1705367463985,-348.79867061,0.00022735,2]
[311732080,1705367463995,-926.75,0.00022735,2]
[311732081,1705367464005,-528.03,0.00022735,2]
[311732082,1705367464015,-500.0,0.00022735,2]
[311732083,1705367464024,-844.44,0.00022735,2]
[311732084,1705367464034,-500.0,0.00022735,2]
[311732085,1705367464043,-664.03,0.00022735,2]
[311732086,1705367464054,-500.0,0.00022735,2]
[311732087,1705367464064,-637.49,0.00022735,2]
[311732088,1705367464073,-500.0,0.00022735,2]
[311732089,1705367464082,-1176.25,0.00022735,2]
[311732090,1705367464091,-295.44,0.00022735,2]
[311732091,1705367464101,-1172.87,0.00022735,2]
[311732092,1705367464111,-500.0,0.00022735,2]
[311732093,1705367464121,-500.0,0.00022735,2]
[311732094,1705367464130,-604.50724686,0.00022735,2]
[311732095,1705367464140,-767.93,0.00022735,2]
[311732096,1705367464150,-530.11701303,0.00022735,2]
[311732097,1705367464159,-895.94,0.00022735,2]
[311732098,1705367464168,-500.0,0.00022735,2]
[311732099,1705367464178,-500.0,0.00022735,2]
[311732100,1705367464188,-500.0,0.00022735,2]
[311732101,1705367464198,-679.09,0.00022735,2]
[311732102,1705367464207,-690.41,0.00022735,2]
[311732103,1705367464216,-500.0,0.00022735,2]
[311732104,1705367464226,-671.35,0.00022735,2]
[311732105,1705367464235,-958.1,0.00022735,2]
[311732106,1705367464245,-740.37,0.00022735,2]
[311732107,1705367464254,-500.0,0.00022735,2]
[311732108,1705367464264,-692.12,0.00022735,2]
[311732109,1705367464273,-500.0,0.00022735,2]
[311732110,1705367464283,-707.47,0.00022735,2]
[311732111,1705367464293,-727.49,0.00022735,2]
[311732112,1705367464302,-872.64,0.00022735,2]
[311732113,1705367464311,-1260.36,0.00022735,2]
[311732114,1705367464321,-411.71001349,0.00022735,2]
[311732115,1705367464330,-500.0,0.00022735,2]
[311732116,1705367464340,-584.22,0.00022735,2]
[311732117,1705367464349,-1239.72,0.00022735,2]
[311732118,1705367464358,-650.28,0.00022735,2]
[311732119,1705367464368,-510.17682778,0.00022735,2]
[311732120,1705367464377,-500.0,0.00022735,2]
[311732121,1705367464388,-500.0,0.00022735,2]
[311732122,1705367464397,-500.0,0.00022735,2]
[311732123,1705367464407,-386.0271451,0.00022735,2]
[311732124,1705367464417,-1025.01,0.00022735,2]
[311732125,1705367464426,-500.0,0.00022735,2]
[311732126,1705367464436,-621.48,0.00022735,2]
[311732127,1705367464446,-500.0,0.00022735,2]
[311732128,1705367464456,-500.0,0.00022735,2]
[311732129,1705367464469,-921.64,0.00022735,2]
[311732130,1705367464478,-500.0,0.00022735,2]
[311732131,1705367464488,-732.85,0.00022735,2]
[311732132,1705367464497,-500.0,0.00022735,2]
[311732133,1705367464506,-624.09,0.00022735,2]
[311732134,1705367464516,-369.06417396,0.00022735,2]
[311732135,1705367464525,-1152.17,0.00022735,2]
[311732136,1705367464535,-578.33,0.00022735,2]
[311732137,1705367464545,-655.77,0.00022735,2]
[311732138,1705367464554,-500.0,0.00022735,2]
[311732139,1705367464564,-500.0,0.00022735,2]
[311732140,1705367464573,-1035.55,0.00022735,2]
[311732141,1705367464582,-745.9,0.00022735,2]
[311732142,1705367464592,-595.92,0.00022735,2]
[311732143,1705367464601,-584.39,0.00022735,2]
[311732144,1705367464611,-500.0,0.00022735,2]
[311732145,1705367464620,-1388.89,0.00022735,2]
[311732146,1705367464629,-1637.4,0.00022735,2]
[311732147,1705367464638,-550.16,0.00022735,2]
[311732148,1705367464648,-479.81318798,0.00022735,2]
[311732149,1705367464658,-649.55,0.00022735,2]
[311732150,1705367464668,-500.0,0.00022735,2]
[311732151,1705367464677,-500.0,0.00022735,2]
[311732152,1705367464687,-681.65,0.00022735,2]
[311732153,1705367464696,-500.0,0.00022735,2]
[311732154,1705367464705,-1053.48,0.00022735,2]
[311732155,1705367464715,-891.37,0.00022735,2]
[311732156,1705367464724,-500.0,0.00022735,2]
[311732157,1705367464734,-787.61,0.00022735,2]
[311732158,1705367464743,-518.82,0.00022735,2]
[311732159,1705367464752,-500.0,0.00022735,2]
[311732160,1705367464762,-1338.5,0.00022735,2]
[311732161,1705367464772,-1439.94,0.00022735,2]
[311732162,1705367464781,-779.06,0.00022735,2]
[311732163,1705367464791,-500.0,0.00022735,2]
[311732164,1705367464800,-624.95,0.00022735,2]
[311732165,1705367464809,-500.0,0.00022735,2]
[311732166,1705367464819,-1611.56,0.00022735,2]
[311732167,1705367464829,-860.72,0.00022735,2]
[311732168,1705367464839,-701.37,0.00022735,2]
[311732169,1705367464848,-559.9,0.00022735,2]
[311732170,1705367464858,-2122.84,0.00022735,2]
[311732171,1705367464868,-500.0,0.00022735,2]
[311732172,1705367464877,-500.0,0.00022735,2]
[311732173,1705367464887,-927.94,0.00022735,2]
[311732174,1705367464896,-500.0,0.00022735,2]
[311732175,1705367464908,-3286.43,0.00022735,2]
[311732176,1705367464918,-500.0,0.00022735,2]
[311732177,1705367464928,-500.0,0.00022735,2]
[311732178,1705367464939,-786.01,0.00022735,2]
[311732179,1705367464948,-500.0,0.00022735,2]
[311732180,1705367464958,-427.2109289,0.00022735,2]
[311732181,1705367464968,-500.0,0.00022735,2]
[311732182,1705367464977,-3385.75,0.00022735,2]
[311732183,1705367464986,-1048.9,0.00022735,2]
[311732184,1705367464996,-500.0,0.00022735,2]
[311732185,1705367465005,-5589.3,0.00022735,2]
[311732186,1705367465015,-3163.81,0.00022735,2]
[311732187,1705367465024,-500.0,0.00022735,2]
[311732188,1705367465034,-925.11,0.00022735,2]
[311732189,1705367465044,-500.0,0.00022735,2]
[311732190,1705367465054,-500.0,0.00022735,2]
[311732191,1705367465064,-931.8,0.00022735,2]
[311732192,1705367465074,-500.0,0.00022735,2]
[311732193,1705367465083,-927.21,0.00022735,2]
[311732194,1705367465093,-595.97,0.00022735,2]
[311732195,1705367465103,-500.0,0.00022735,2]
[311732196,1705367465112,-835.66,0.00022735,2]
[311732197,1705367465121,-500.0,0.00022735,2]
[311732198,1705367465131,-1191.44,0.00022735,2]
[311732199,1705367465145,-800.1,0.00022735,2]
[311732200,1705367465157,-500.0,0.00022735,2]
[311732201,1705367465166,-500.0,0.00022735,2]
[311732202,1705367465175,-612.72,0.00022735,2]
[311732203,1705367465186,-908.33,0.00022735,2]
[311732204,1705367465195,-555.84,0.00022735,2]
[311732205,1705367465204,-500.0,0.00022735,2]
[311732206,1705367465214,-992.7,0.00022735,2]
[311732207,1705367465224,-500.0,0.00022735,2]
[311732208,1705367465234,-786.04,0.00022735,2]
[311732209,1705367465243,-1343.59,0.00022735,2]
[311732210,1705367465254,-1395.33,0.00022735,2]
[311732211,1705367465263,-500.0,0.00022735,2]
[311732212,1705367465273,-500.0,0.00022735,2]
[311732213,1705367465282,-1209.51,0.00022735,2]
[311732214,1705367465291,-619.11,0.00022735,2]
[311732215,1705367465301,-500.0,0.00022735,2]
[311732216,1705367465310,-500.0,0.00022735,2]
[311732217,1705367465319,-500.0,0.00022735,2]
[311732218,1705367465328,-2020.15,0.00022735,2]
[311732219,1705367465337,-500.0,0.00022735,2]
[311732220,1705367465346,-1187.9,0.00022735,2]
[311732221,1705367465356,-500.0,0.00022735,2]
[311732222,1705367465365,-500.0,0.00022735,2]
[311732223,1705367465375,-654.84,0.00022735,2]
[311732224,1705367465384,-705.85,0.00022735,2]
[311732225,1705367465393,-790.21,0.00022735,2]
[311732226,1705367465402,-519.28718352,0.00022735,2]
[311732227,1705367465411,-1336.35,0.00022735,2]
[311732228,1705367465420,-528.02,0.00022735,2]
[311732229,1705367465430,-550.1996002,0.00022735,2]
[311732230,1705367465439,-500.0,0.00022735,2]
[311732231,1705367465448,-1000.0,0.00022735,2]
[311732232,1705367465457,-2308.37,0.00022735,2]
[311732233,1705367465468,-1245.32,0.00022735,2]
[311732234,1705367465477,-500.0,0.00022735,2]
[311732235,1705367465486,-615.11,0.00022735,2]
[311732236,1705367465495,-1145.95,0.00022735,2]
[311732237,1705367465505,-721.17,0.00022735,2]
[311732238,1705367465514,-790.73,0.00022735,2]
[311732239,1705367465523,-784.59,0.00022735,2]
[311732240,1705367465531,-962.22,0.00022735,2]
[311732241,1705367465540,-810.22,0.00022735,2]
[311732242,1705367465550,-385.30212247,0.00022735,2]
[311732243,1705367465558,-500.0,0.00022735,2]
[311732244,1705367465568,-804.94,0.00022735,2]
[311732245,1705367465578,-794.76,0.00022735,2]
[311732246,1705367465587,-647.64,0.00022735,2]
[311732247,1705367465596,-500.0,0.00022735,2]
[311732248,1705367465606,-500.0,0.00022735,2]
[311732249,1705367465616,-1903.26,0.00022735,2]
[311732250,1705367465625,-834.29,0.00022735,2]
[311732251,1705367465634,-500.0,0.00022735,2]
[311732252,1705367465644,-512.16,0.00022735,2]
[311732253,1705367465654,-500.0,0.00022735,2]
[311732254,1705367465663,-755.43,0.00022735,2]
[311732255,1705367465672,-500.0,0.00022735,2]
[311732256,1705367465682,-474.96955543,0.00022735,2]
[311732257,1705367465691,-349.70611031,0.00022735,2]
[311732258,1705367465700,-1049.46,0.00022735,2]
[311732259,1705367465709,-300.0,0.00022735,2]
[311732260,1705367465718,-500.0,0.00022735,2]
[311732261,1705367465728,-500.0,0.00022735,2]
[311732262,1705367465737,-500.0,0.00022735,2]
[311732263,1705367465746,-500.0,0.00022735,2]
[311732264,1705367465755,-626.87,0.00022735,2]
[311732265,1705367465765,-500.0,0.00022735,2]
[311732266,1705367465775,-804.23,0.00022735,2]
[311732267,1705367465784,-856.29,0.00022735,2]
[311732268,1705367465793,-644.7,0.00022735,2]
[311732269,1705367465802,-585.31,0.00022735,2]
[311732270,1705367465811,-500.0,0.00022735,2]
[311732271,1705367465820,-151.0,0.00022735,7]
[311732272,1705367465830,-151.0,0.00022736,7]
[311732273,1705367465931,-151.0,0.00022736,7]
[311732274,1705367465941,-151.0,0.00022736,7]
[311732275,1705367465950,-151.0,0.00022736,7]
[311732276,1705367465959,-500.0,0.00022736,2]
[311732277,1705367465969,-821.64,0.00022736,2]
[311732278,1705367465978,-500.0,0.00022736,2]
[311732279,1705367465987,-1348.31,0.00022736,2]
[311732280,1705367465996,-1452.29,0.00022736,2]
[311732281,1705367466006,-500.0,0.00022736,2]
[311732282,1705367466015,-735.68,0.00022736,2]
[311732283,1705367466025,-1194.74,0.00022736,2]
[311732284,1705367466035,-1059.45,0.00022736,2]
[311732285,1705367466044,-500.0,0.00022736,2]
[311732286,1705367466053,-1087.9,0.00022736,2]
[311732287,1705367466063,-1017.51,0.00022736,2]
[311732288,1705367466072,-677.42,0.00022736,2]
[311732289,1705367466082,-814.16,0.00022736,2]
[311732290,1705367466092,-847.09,0.00022736,2]
[311732291,1705367466101,-500.0,0.00022736,2]
[311732292,1705367466110,-1002.35,0.00022736,2]
[311732293,1705367466120,-599.96,0.00022736,2]
[311732294,1705367466129,-967.64,0.00022736,2]
[311732295,1705367466138,-758.69,0.00022736,2]
[311732296,1705367466148,-1317.3,0.00022736,2]